[Event "WYCC 2018 G14"]
[Site "Halkidiki"]
[Date "2018.10.26"]
[Round "7"]
[White "Yedigaryan, Asya"]
[Black "Hrebenshchykova, Yelyzaveta"]
[Result "1/2-1/2"]
[ECO "A45"]
[WhiteElo "1726"]
[BlackElo "1968"]
[Annotator "NA"]
[PlyCount "90"]
[EventDate "2018.10.20"]
[EventType "swiss"]
[EventCountry "GRE"]
[SourceTitle "playchess.com"]
[Source "ChessBase"]
[SourceQuality "1"]
[TimeControl "40/5400+30:1800+30"]

1. d4 {[%emt 0:00:00]} Nf6 {[%emt 0:00:00]} 2. Nc3 {[%emt 0:00:00]} d5 {[%emt 0:00:00]} 3. Bf4 {[%emt 0:00:00]} c5 {[%emt 0:00:50]} 4. e3 {[%emt 0:00:50]} a6 {[%emt 0:00:33]} 5. a4 {[%emt 0:02:29]} e6 {[%emt 0:02:21]} 6. Nf3 {[%emt 0:00:10]} b6 {[%emt 0:12:01]} 7. Be2 {[%emt 0:02:33]} Bb7 {[%emt 0:00:39]} 8. O-O {[%emt 0:00:13]} Nbd7 {[%emt 0:00:08]} 9. h3 {[%emt 0:05:59]} Be7 {[%emt 0:03:44]} 10. Ne5 {[%emt 0:09:48]} O-O {[%emt 0:03:04]} 11. Bf3 {[%emt 0:05:37]} cxd4 {[%emt 0:14:01]} 12. exd4 {[%emt 0:01:27]} Ne4 {[%emt 0:01:15]} 13. Ne2 {[%emt 0:18:03]} f6 {[%emt 0:01:49]} 14. Nd3 {[%emt 0:05:43]} Re8 {[%emt 0:08:34]} 15. Bg4 {[%emt 0:06:04]} Nf8 {[%emt 0:06:27]} 16. Bh2 {[%emt 0:06:03]} Bd6 {[%emt 0:05:47]} 17. Bxd6 {[%emt 0:00:50]} Qxd6 {[%emt 0:01:47]} 18. f4 {[%emt 0:00:42]} Rac8 {[%emt 0:05:53]} 19. c3 {[%emt 0:16:12]} Rc7 {[%emt 0:06:13]} 20. Qe1 Ng6 21. h4 {[%emt 0:01:51]} Ne7 {[%emt 0:02:11]} 22. Ng3 {[%emt 0:03:32]} Nc8 {[%emt 0:10:03]} 23. a5 {[%emt 0:02:24]} bxa5 {[%emt 0:07:01]} 24. Rxa5 {[%emt 0:01:04]} Qb6 {[%emt 0:00:21]} 25. Ra4 {[%emt 0:01:05]} Ncd6 {[%emt 0:04:29]} 26. Rb4 {[%emt 0:01:16]} Qc6 {[%emt 0:00:07]} 27. Nxe4 {[%emt 0:01:51]} Nxe4 {[%emt 0:00:06]} 28. Qd1 {[%emt 0:01:01]} a5 {[%emt 0:01:27]} 29. Ra4 {[%emt 0:00:31]} Qb5 {[%emt 0:00:11]} 30. Re1 {[%emt 0:02:36]} Ba6 {[%emt 0:01:39]} 31. Re3 {[%emt 0:00:16]} Qb6 {[%emt 0:01:53]} 32. Ra1 {[%emt 0:00:18]} e5 {[%emt 0:00:34]} 33. fxe5 {[%emt 0:00:10]} fxe5 {[%emt 0:00:05]} 34. Qa4 {[%emt 0:00:56]} Rf8 {[%emt 0:01:07]} 35. Qxa5 {[%emt 0:00:47]} Qxa5 {[%emt 0:00:06]} 36. Rxa5 {[%emt 0:00:09]} exd4 {[%emt 0:00:26]} 37. cxd4 {[%emt 0:00:26]} Bxd3 {[%emt 0:00:15]} 38. Rxd3 {[%emt 0:00:06]} Rc1+ {[%emt 0:01:01]} 39. Kh2 {[%emt 0:01:59]} Nf2 {[%emt 0:00:11]} 40. Be6+ {[%emt 0:00:00]} Kh8 {[%emt 0:00:00]} 41. Rf3 {[%emt 0:00:23]} Rh1+ {[%emt 0:02:03]} 42. Kg3 {[%emt 0:03:28]} Ne4+ {[%emt 0:00:06]} 43. Kg4 {[%emt 0:00:14]} Nf6+ {[%emt 0:00:20]} 44. Kg3 {[%emt 0:00:39]} Ne4+ {[%emt 0:00:14]} 45. Kg4 {[%emt 0:00:07]} Nf6+ {[%emt 0:00:05]} 1/2-1/2

[Event "WYCC 2018 G14"]
[Site "Halkidiki"]
[Date "2018.10.26"]
[Round "7"]
[White "Maciulaityte, Barbora"]
[Black "Tamrazyan, Gohar"]
[Result "1/2-1/2"]
[ECO "C11"]
[WhiteElo "1715"]
[BlackElo "1824"]
[Annotator "NA"]
[PlyCount "58"]
[EventDate "2018.10.20"]
[EventType "swiss"]
[EventCountry "GRE"]
[SourceTitle "playchess.com"]
[Source "ChessBase"]
[SourceQuality "1"]
[TimeControl "40/5400+30:1800+30"]

1. e4 {[%emt 0:00:00]} e6 {[%emt 0:00:00]} 2. d4 {[%emt 0:00:00]} d5 {[%emt 0:00:00]} 3. Nc3 {[%emt 0:00:00]} Nf6 {[%emt 0:00:00]} 4. e5 {[%emt 0:00:00]} Nfd7 {[%emt 0:00:00]} 5. f4 {[%emt 0:00:09]} c5 {[%emt 0:00:00]} 6. Nf3 {[%emt 0:00:15]} Nc6 {[%emt 0:00:00]} 7. Be3 {[%emt 0:00:17]} a6 {[%emt 0:00:00]} 8. Qd2 {[%emt 0:03:43]} Be7 {[%emt 0:00:03]} 9. Be2 {[%emt 0:00:33]} b5 {[%emt 0:03:14]} 10. Nd1 {[%emt 0:11:57]} Qb6 {[%emt 0:01:34]} 11. Nf2 {[%emt 0:02:41]} b4 {[%emt 0:08:19]} 12. O-O {[%emt 0:05:47]} a5 {[%emt 0:00:47]} 13. c4 {[%emt 0:02:20]} cxd4 {[%emt 0:04:43]} 14. Nxd4 {[%emt 0:00:52]} Bc5 {[%emt 0:03:19]} 15. Rfd1 {[%emt 0:02:35]} Nxd4 {[%emt 0:13:58]} 16. Bxd4 {[%emt 0:00:10]} Bxd4 {[%emt 0:00:09]} 17. Qxd4 {[%emt 0:00:06]} Qxd4 {[%emt 0:00:09]} 18. Rxd4 {[%emt 0:00:07]} Ba6 {[%emt 0:01:21]} 19. Bf3 {[%emt 0:04:36]} Bb7 {[%emt 0:25:34]} 20. cxd5 {[%emt 0:03:53]} Bxd5 {[%emt 0:02:45]} 21. Bxd5 {[%emt 0:00:15]} exd5 {[%emt 0:00:04]} 22. Rxd5 {[%emt 0:00:07]} Nb6 {[%emt 0:02:01]} 23. Rc5 {[%emt 0:01:31]} Na4 {[%emt 0:02:23]} 24. Rc2 {[%emt 0:00:08]} O-O {[%emt 0:01:38]} 25. Ne4 {[%emt 0:01:57]} Rac8 {[%emt 0:03:00]} 26. Rac1 {[%emt 0:02:41]} Rcd8 {[%emt 0:04:44]} 27. b3 {[%emt 0:04:26]} Rd4 {[%emt 0:04:19]} 28. Re2 {[%emt 0:01:20]} Nb6 {[%emt 0:05:40]} 29. Rc5 {[%emt 0:05:03]} a4 {[%emt 0:02:05]} 1/2-1/2

[Event "WYCC 2018 G14"]
[Site "Halkidiki"]
[Date "2018.10.26"]
[Round "7"]
[White "Djordjevic, Nevena"]
[Black "Sleurs, Juliette"]
[Result "0-1"]
[ECO "D10"]
[WhiteElo "1704"]
[BlackElo "1812"]
[Annotator "NA"]
[PlyCount "88"]
[EventDate "2018.10.20"]
[EventType "swiss"]
[EventCountry "GRE"]
[SourceTitle "playchess.com"]
[Source "ChessBase"]
[SourceQuality "1"]
[TimeControl "40/5400+30:1800+30"]

1. d4 {[%emt 0:00:00]} d5 {[%emt 0:00:00]} 2. c4 {[%emt 0:00:00]} c6 {[%emt 0:00:00]} 3. cxd5 {[%emt 0:00:00]} cxd5 {[%emt 0:00:00]} 4. Nc3 {[%emt 0:00:00]} Nc6 {[%emt 0:00:00]} 5. Bf4 {[%emt 0:01:04]} e5 {[%emt 0:00:00]} 6. dxe5 {[%emt 0:03:53]} d4 {[%emt 0:00:05]} 7. Ne4 {[%emt 0:04:41]} Qa5+ {[%emt 0:00:18]} 8. Bd2 {[%emt 0:11:12]} Qxe5 {[%emt 0:00:11]} 9. Ng3 {[%emt 0:02:42]} Nf6 {[%emt 0:00:48]} 10. Nf3 {[%emt 0:03:42]} Qd5 {[%emt 0:03:15]} 11. e3 {[%emt 0:20:33]} dxe3 {[%emt 0:03:45]} 12. Bxe3 {[%emt 0:00:49]} Bb4+ {[%emt 0:02:22]} 13. Bd2 {[%emt 0:03:04]} O-O {[%emt 0:01:57]} 14. Be2 {[%emt 0:08:08]} Be6 {[%emt 0:17:52]} 15. O-O {[%emt 0:01:47]} Rfd8 {[%emt 0:14:24]} 16. Be3 {[%emt 0:06:37]} Qxa2 {[%emt 0:23:30]} 17. Qxd8+ {[%emt 0:11:50]} Rxd8 {[%emt 0:00:40]} 18. Rxa2 {[%emt 0:00:08]} Bxa2 {[%emt 0:00:07]} 19. Bxa7 {[%emt 0:02:06]} Nxa7 {[%emt 0:03:58]} 20. Ra1 {[%emt 0:00:13]} Bd5 {[%emt 0:04:12]} 21. Rxa7 {[%emt 0:00:22]} Bc5 {[%emt 0:01:10]} 22. Ra1 {[%emt 0:01:17]} Ng4 {[%emt 0:02:47]} 23. Rf1 {[%emt 0:01:29]} b6 {[%emt 0:01:20]} 24. h3 Bxf3 25. Bxf3 {[%emt 0:02:42]} Nxf2 {[%emt 0:03:18]} 26. Rxf2 {[%emt 0:00:07]} Rd2 {[%emt 0:00:13]} 27. Ne4 {[%emt 0:02:55]} Bxf2+ {[%emt 0:00:08]} 28. Nxf2 {[%emt 0:00:07]} Rxb2 {[%emt 0:00:09]} 29. Kf1 {[%emt 0:05:00]} Rc2 {[%emt 0:03:18]} 30. Be4 Rc8 {[%emt 0:02:13]} 31. Ke2 {[%emt 0:02:11]} Kf8 32. Kd2 Ke7 {[%emt 0:01:29]} 33. Nd3 {[%emt 0:01:11]} g6 {[%emt 0:00:51]} 34. g4 {[%emt 0:00:53]} Kf6 {[%emt 0:04:14]} 35. h4 {[%emt 0:02:26]} h6 {[%emt 0:00:30]} 36. Ke3 {[%emt 0:00:49]} b5 {[%emt 0:01:17]} 37. Kd4 {[%emt 0:01:24]} Rc4+ {[%emt 0:00:42]} 38. Kd5 {[%emt 0:00:31]} Rc2 {[%emt 0:02:21]} 39. h5 {[%emt 0:02:30]} gxh5 {[%emt 0:00:36]} 40. gxh5 {[%emt 0:00:00]} Kg5 {[%emt 0:00:00]} 41. Ke5 {[%emt 0:05:51]} f6+ {[%emt 0:13:34]} 42. Ke6 {[%emt 0:04:06]} f5 {[%emt 0:02:51]} 43. Bxf5 {[%emt 0:02:39]} Re2+ {[%emt 0:00:55]} 44. Ne5 {[%emt 0:00:11]} Kf4 {[%emt 0:00:26]} 0-1

[Event "WYCC 2018 G14"]
[Site "Halkidiki"]
[Date "2018.10.26"]
[Round "7"]
[White "Kostina, Veronika"]
[Black "Somton, Anita"]
[Result "1-0"]
[ECO "B01"]
[WhiteElo "1700"]
[BlackElo "1787"]
[Annotator "NA"]
[PlyCount "127"]
[EventDate "2018.10.20"]
[EventType "swiss"]
[EventCountry "GRE"]
[SourceTitle "playchess.com"]
[Source "ChessBase"]
[SourceQuality "1"]
[TimeControl "40/5400+30:1800+30"]

1. e4 {[%emt 0:00:00]} d5 {[%emt 0:00:05]} 2. Nc3 {[%emt 0:02:01]} d4 {[%emt 0:01:38]} 3. Nce2 {[%emt 0:01:29]} e5 {[%emt 0:02:10]} 4. Nf3 {[%emt 0:04:38]} Bd6 {[%emt 0:02:09]} 5. Ng3 {[%emt 0:03:09]} Nf6 {[%emt 0:04:03]} 6. Bc4 {[%emt 0:03:43]} Be6 {[%emt 0:04:42]} 7. Bxe6 {[%emt 0:03:43]} fxe6 {[%emt 0:00:21]} 8. O-O {[%emt 0:03:46]} Nbd7 {[%emt 0:02:48]} 9. d3 {[%emt 0:05:09]} c5 {[%emt 0:03:22]} 10. Re1 {[%emt 0:06:40]} O-O {[%emt 0:04:00]} 11. Nf1 {[%emt 0:05:25]} Qe8 {[%emt 0:05:06]} 12. N1d2 {[%emt 0:09:40]} Bc7 {[%emt 0:02:53]} 13. a4 {[%emt 0:05:32]} Nh5 {[%emt 0:04:39]} 14. Nc4 {[%emt 0:09:01]} Nf4 {[%emt 0:03:33]} 15. Bxf4 {[%emt 0:12:26]} Rxf4 {[%emt 0:03:14]} 16. g3 {[%emt 0:04:43]} Rf6 {[%emt 0:00:49]} 17. Nh4 {[%emt 0:02:39]} Qf7 {[%emt 0:01:50]} 18. Rf1 {[%emt 0:01:38]} Rf8 {[%emt 0:03:10]} 19. Qe2 {[%emt 0:00:47]} Rh6 {[%emt 0:06:00]} 20. Ng2 {[%emt 0:03:31]} g5 {[%emt 0:02:22]} 21. Qg4 {[%emt 0:02:24]} Qg7 {[%emt 0:02:57]} 22. h4 {[%emt 0:02:40]} gxh4 {[%emt 0:03:36]} 23. Qxg7+ {[%emt 0:00:01]} Kxg7 {[%emt 0:00:02]} 24. Nxh4 {[%emt 0:00:02]} Bd8 {[%emt 0:01:36]} 25. Ng2 {[%emt 0:00:46]} Rff6 {[%emt 0:02:27]} 26. Ne1 {[%emt 0:01:37]} Rfg6 {[%emt 0:02:24]} 27. Nf3 {[%emt 0:01:54]} Bc7 {[%emt 0:04:03]} 28. Kg2 {[%emt 0:01:26]} Rh5 {[%emt 0:03:54]} 29. Rh1 {[%emt 0:00:59]} Rgh6 {[%emt 0:00:43]} 30. Rxh5 {[%emt 0:00:06]} Rxh5 {[%emt 0:00:02]} 31. Ra3 {[%emt 0:01:55]} b6 {[%emt 0:01:09]} 32. Rb3 {[%emt 0:00:48]} a6 {[%emt 0:03:24]} 33. Ra3 {[%emt 0:00:51]} Kf6 {[%emt 0:01:37]} 34. Ra1 {[%emt 0:00:46]} Nf8 {[%emt 0:01:42]} 35. g4 {[%emt 0:00:12]} Rg5 {[%emt 0:01:19]} 36. Nxg5 {[%emt 0:00:08]} Kxg5 {[%emt 0:00:03]} 37. Kg3 {[%emt 0:00:42]} Nd7 {[%emt 0:01:33]} 38. Rh1 {[%emt 0:00:29]} Nf6 {[%emt 0:02:07]} 39. f3 {[%emt 0:00:24]} h6 {[%emt 0:01:57]} 40. Rh2 {[%emt 0:00:00]} Kg6 {[%emt 0:00:00]} 41. Kh4 {[%emt 0:04:25]} Nd7 {[%emt 0:03:44]} 42. Rh1 {[%emt 0:02:04]} Nf6 {[%emt 0:04:07]} 43. Rg1 {[%emt 0:02:03]} Nd7 {[%emt 0:01:26]} 44. Rb1 {[%emt 0:01:32]} a5 {[%emt 0:02:46]} 45. Ra1 {[%emt 0:01:57]} Bd8+ {[%emt 0:02:50]} 46. Kg3 {[%emt 0:00:39]} Kg5 {[%emt 0:01:51]} 47. Ra3 {[%emt 0:01:38]} Bc7 {[%emt 0:01:16]} 48. Rb3 {[%emt 0:01:44]} Bd8 {[%emt 0:00:38]} 49. Rb5 {[%emt 0:01:08]} Kg6 {[%emt 0:01:27]} 50. f4 {[%emt 0:03:27]} exf4+ {[%emt 0:01:46]} 51. Kxf4 {[%emt 0:00:08]} Bg5+ {[%emt 0:00:30]} 52. Kf3 {[%emt 0:00:37]} Bd8 {[%emt 0:00:33]} 53. Rb3 {[%emt 0:03:25]} Kg5 {[%emt 0:04:56]} 54. e5 {[%emt 0:01:49]} Bc7 {[%emt 0:00:42]} 55. Rb5 Bd8 56. c3 {[%emt 0:03:34]} Bc7 {[%emt 0:03:17]} 57. Rb3 {[%emt 0:05:33]} dxc3 {[%emt 0:03:53]} 58. bxc3 {[%emt 0:00:27]} Nxe5+ {[%emt 0:03:11]} 59. Nxe5 {[%emt 0:00:08]} Bxe5 {[%emt 0:00:05]} 60. Rxb6 {[%emt 0:00:16]} Bxc3 {[%emt 0:00:05]} 61. Rxe6 {[%emt 0:00:25]} Bd4 {[%emt 0:01:17]} 62. Ra6 {[%emt 0:00:44]} Bc3 {[%emt 0:00:20]} 63. Rc6 {[%emt 0:00:16]} Bd4 {[%emt 0:01:24]} 64. Rd6 {[%emt 0:00:46]} 1-0

[Event "WYCC 2018 G14"]
[Site "Halkidiki"]
[Date "2018.10.26"]
[Round "7"]
[White "Hernandez Guerra, Luna Yue"]
[Black "Murzina, Agata"]
[Result "1-0"]
[ECO "C05"]
[WhiteElo "1659"]
[BlackElo "1768"]
[Annotator "NA"]
[PlyCount "75"]
[EventDate "2018.10.20"]
[EventType "swiss"]
[EventCountry "GRE"]
[SourceTitle "playchess.com"]
[Source "ChessBase"]
[SourceQuality "1"]
[TimeControl "40/5400+30:1800+30"]

1. e4 {[%emt 0:00:00]} e6 {[%emt 0:01:44]} 2. d4 {[%emt 0:00:00]} d5 {[%emt 0:00:05]} 3. Nd2 {[%emt 0:00:00]} Nf6 {[%emt 0:00:15]} 4. e5 {[%emt 0:00:11]} Nfd7 {[%emt 0:00:05]} 5. f4 {[%emt 0:00:14]} c5 {[%emt 0:00:04]} 6. c3 {[%emt 0:00:05]} Nc6 {[%emt 0:00:05]} 7. Ndf3 {[%emt 0:00:38]} Qa5 {[%emt 0:01:18]} 8. Be3 {[%emt 0:00:46]} b5 {[%emt 0:01:38]} 9. Bd3 {[%emt 0:02:07]} b4 {[%emt 0:00:28]} 10. Ne2 {[%emt 0:01:25]} Be7 {[%emt 0:07:13]} 11. O-O {[%emt 0:02:05]} O-O {[%emt 0:01:00]} 12. Qe1 {[%emt 0:10:05]} Ba6 {[%emt 0:02:44]} 13. Bc2 {[%emt 0:03:38]} Nb6 {[%emt 0:09:46]} 14. Ng5 {[%emt 0:07:56]} g6 {[%emt 0:06:15]} 15. Rf3 {[%emt 0:04:20]} Bxe2 {[%emt 0:07:47]} 16. Qxe2 {[%emt 0:00:49]} bxc3 {[%emt 0:00:49]} 17. bxc3 {[%emt 0:04:32]} Qxc3 {[%emt 0:00:11]} 18. Rd1 {[%emt 0:01:23]} cxd4 {[%emt 0:01:05]} 19. Bf2 {[%emt 0:03:36]} Qa5 {[%emt 0:01:05]} 20. Rh3 {[%emt 0:02:03]} Bxg5 {[%emt 0:00:19]} 21. fxg5 {[%emt 0:00:18]} Kg7 {[%emt 0:09:16]} 22. Qf3 {[%emt 0:05:42]} Nd7 {[%emt 0:00:35]} 23. Be1 {[%emt 0:13:23]} Qxa2 {[%emt 0:00:37]} 24. Rxh7+ {[%emt 0:01:14]} Kxh7 {[%emt 0:00:47]} 25. Qh5+ {[%emt 0:00:25]} Kg8 {[%emt 0:01:46]} 26. Bxg6 {[%emt 0:00:16]} fxg6 {[%emt 0:01:09]} 27. Qxg6+ {[%emt 0:00:09]} Kh8 {[%emt 0:00:08]} 28. Rd3 {[%emt 0:00:24]} Rf1+ {[%emt 0:00:32]} 29. Kxf1 {[%emt 0:00:12]} Qc4 {[%emt 0:00:05]} 30. Kg1 {[%emt 0:00:23]} Qxd3 {[%emt 0:00:09]} 31. Qxd3 {[%emt 0:00:07]} Nf8 {[%emt 0:01:38]} 32. Qf3 {[%emt 0:02:21]} a5 {[%emt 0:02:27]} 33. Qf6+ {[%emt 0:01:21]} Kg8 {[%emt 0:02:43]} 34. g6 {[%emt 0:01:47]} Ra7 {[%emt 0:01:27]} 35. Bd2 {[%emt 0:00:43]} Ne7 {[%emt 0:00:31]} 36. Qf7+ {[%emt 0:00:31]} Kh8 {[%emt 0:00:01]} 37. g7+ {[%emt 0:00:18]} Kh7 {[%emt 0:00:08]} 38. g8=Q# {[%emt 0:00:07]} 1-0

[Event "WYCC 2018 G14"]
[Site "Halkidiki"]
[Date "2018.10.26"]
[Round "7"]
[White "Kong, Sydney"]
[Black "Velea, Anne-Marie"]
[Result "0-1"]
[ECO "D00"]
[WhiteElo "1659"]
[BlackElo "1859"]
[Annotator "NA"]
[PlyCount "96"]
[EventDate "2018.10.20"]
[EventType "swiss"]
[EventCountry "GRE"]
[SourceTitle "playchess.com"]
[Source "ChessBase"]
[SourceQuality "1"]
[TimeControl "40/5400+30:1800+30"]

1. d4 {[%emt 0:00:00]} d5 {[%emt 0:00:00]} 2. Bf4 {[%emt 0:00:00]} Nf6 {[%emt 0:00:00]} 3. e3 {[%emt 0:00:00]} e6 {[%emt 0:00:00]} 4. Nf3 {[%emt 0:00:00]} c5 {[%emt 0:00:02]} 5. c3 {[%emt 0:00:11]} Bd6 {[%emt 0:00:13]} 6. Bxd6 {[%emt 0:00:35]} Qxd6 {[%emt 0:00:03]} 7. Nbd2 {[%emt 0:03:02]} Nc6 {[%emt 0:03:11]} 8. Bd3 {[%emt 0:07:59]} O-O {[%emt 0:03:29]} 9. O-O {[%emt 0:02:32]} e5 {[%emt 0:04:09]} 10. dxe5 {[%emt 0:03:07]} Nxe5 {[%emt 0:00:08]} 11. Nxe5 {[%emt 0:00:48]} Qxe5 {[%emt 0:00:08]} 12. h3 {[%emt 0:07:31]} b6 {[%emt 0:04:18]} 13. Re1 {[%emt 0:05:58]} Bb7 {[%emt 0:04:24]} 14. Qe2 {[%emt 0:09:29]} Rad8 {[%emt 0:07:19]} 15. Rad1 {[%emt 0:09:09]} Rfe8 {[%emt 0:12:09]} 16. Ba6 {[%emt 0:08:59]} Ba8 {[%emt 0:02:07]} 17. Bb5 {[%emt 0:02:52]} Re6 {[%emt 0:05:43]} 18. e4 {[%emt 0:03:38]} dxe4 {[%emt 0:16:10]} 19. Nxe4 {[%emt 0:02:49]} Rxd1 {[%emt 0:08:11]} 20. Nxf6+ {[%emt 0:00:16]} Qxf6 {[%emt 0:02:44]} 21. Qxd1 {[%emt 0:00:19]} Qg5 {[%emt 0:03:50]} 22. g3 {[%emt 0:04:05]} Qd5 {[%emt 0:02:57]} 23. f3 {[%emt 0:03:35]} Rxe1+ {[%emt 0:05:00]} 24. Qxe1 {[%emt 0:00:04]} h6 {[%emt 0:00:57]} 25. Be2 {[%emt 0:09:06]} Qxa2 {[%emt 0:01:08]} 26. Bd3 {[%emt 0:07:26]} Qe6 {[%emt 0:01:21]} 27. Qxe6 {[%emt 0:02:11]} fxe6 {[%emt 0:00:02]} 28. Kf2 {[%emt 0:00:24]} Kf7 {[%emt 0:00:56]} 29. Ke3 {[%emt 0:00:34]} Bb7 {[%emt 0:01:00]} 30. h4 {[%emt 0:01:21]} Kf6 {[%emt 0:01:16]} 31. b4 {[%emt 0:02:29]} cxb4 {[%emt 0:02:04]} 32. cxb4 {[%emt 0:00:02]} a5 {[%emt 0:02:11]} 33. bxa5 bxa5 {[%emt 0:00:02]} 34. Bb5 {[%emt 0:03:39]} Ke5 {[%emt 0:01:48]} 35. g4 {[%emt 0:01:42]} Kd5 {[%emt 0:00:50]} 36. f4 {[%emt 0:00:30]} Kc5 {[%emt 0:00:32]} 37. Bd3 {[%emt 0:00:05]} a4 {[%emt 0:00:46]} 38. Bb1 {[%emt 0:00:44]} a3 {[%emt 0:00:26]} 39. h5 {[%emt 0:00:32]} Bd5 {[%emt 0:00:13]} 40. g5 {[%emt 0:00:00]} a2 {[%emt 0:00:00]} 41. Bxa2 {[%emt 0:00:46]} Bxa2 {[%emt 0:01:28]} 42. Ke4 {[%emt 0:01:14]} Kd6 {[%emt 0:00:46]} 43. gxh6 {[%emt 0:00:27]} gxh6 {[%emt 0:00:02]} 44. Ke3 {[%emt 0:01:19]} Kd5 {[%emt 0:00:21]} 45. Kf3 {[%emt 0:00:43]} Kd4 {[%emt 0:00:44]} 46. Kf2 {[%emt 0:01:14]} Ke4 {[%emt 0:00:08]} 47. Kg3 {[%emt 0:00:03]} Bb3 {[%emt 0:00:13]} 48. Kg4 {[%emt 0:00:19]} Bd1+ {[%emt 0:00:05]} 0-1

[Event "WYCC 2018 G14"]
[Site "Halkidiki"]
[Date "2018.10.26"]
[Round "7"]
[White "Figueroa Bernal, Julia Dennis"]
[Black "Lomaia, Diana"]
[Result "1/2-1/2"]
[ECO "B90"]
[WhiteElo "1650"]
[BlackElo "1876"]
[Annotator "NA"]
[PlyCount "114"]
[EventDate "2018.10.20"]
[EventType "swiss"]
[EventCountry "GRE"]
[SourceTitle "playchess.com"]
[Source "ChessBase"]
[SourceQuality "1"]
[TimeControl "40/5400+30:1800+30"]

1. e4 {[%emt 0:00:00]} c5 {[%emt 0:00:00]} 2. Nf3 {[%emt 0:00:00]} d6 {[%emt 0:00:00]} 3. d4 {[%emt 0:00:00]} cxd4 {[%emt 0:00:00]} 4. Nxd4 {[%emt 0:00:00]} Nf6 {[%emt 0:00:18]} 5. Nc3 {[%emt 0:00:00]} a6 {[%emt 0:00:18]} 6. f3 {[%emt 0:00:15]} e5 {[%emt 0:01:18]} 7. Nb3 {[%emt 0:00:06]} Be6 {[%emt 0:00:26]} 8. Be3 {[%emt 0:00:11]} Be7 {[%emt 0:00:36]} 9. Qd2 {[%emt 0:00:10]} Nbd7 {[%emt 0:02:44]} 10. g4 {[%emt 0:01:07]} Rc8 {[%emt 0:01:51]} 11. g5 {[%emt 0:02:33]} Nh5 {[%emt 0:00:35]} 12. O-O-O {[%emt 0:01:59]} O-O {[%emt 0:00:44]} 13. Nd5 {[%emt 0:00:58]} Bxd5 {[%emt 0:03:05]} 14. exd5 {[%emt 0:00:09]} g6 {[%emt 0:08:06]} 15. Kb1 {[%emt 0:03:32]} Qc7 {[%emt 0:03:51]} 16. Bh3 {[%emt 0:07:04]} f5 {[%emt 0:11:08]} 17. gxf6 {[%emt 0:00:38]} Bxf6 {[%emt 0:01:34]} 18. Bg4 {[%emt 0:03:35]} Nf4 {[%emt 0:09:46]} 19. Bxf4 {[%emt 0:05:15]} exf4 {[%emt 0:00:15]} 20. Nd4 {[%emt 0:01:29]} Bxd4 {[%emt 0:07:10]} 21. Be6+ {[%emt 0:00:20]} Kg7 {[%emt 0:00:59]} 22. Qxd4+ {[%emt 0:00:13]} Rf6 {[%emt 0:00:15]} 23. Rd2 {[%emt 0:18:07]} Ne5 {[%emt 0:04:49]} 24. Rf2 {[%emt 0:10:18]} Qc5 {[%emt 0:10:18]} 25. Qxc5 {[%emt 0:02:05]} Rxc5 {[%emt 0:00:09]} 26. b3 {[%emt 0:02:52]} Rc3 {[%emt 0:02:25]} 27. Rhf1 {[%emt 0:00:11]} Rf8 {[%emt 0:04:09]} 28. Kb2 {[%emt 0:00:34]} Re3 {[%emt 0:00:19]} 29. Kc1 {[%emt 0:05:38]} Nf7 {[%emt 0:05:37]} 30. h4 {[%emt 0:05:40]} Nh6 {[%emt 0:01:54]} 31. Kd2 {[%emt 0:02:11]} Nf5 {[%emt 0:01:57]} 32. Bxf5 {[%emt 0:03:56]} Rxf5 {[%emt 0:00:09]} 33. c4 {[%emt 0:00:20]} Rfe5 {[%emt 0:04:06]} 34. Rg1 {[%emt 0:00:48]} b5 {[%emt 0:10:31]} 35. Rb1 {[%emt 0:04:42]} Rh5 {[%emt 0:01:12]} 36. Re2 {[%emt 0:03:10]} Rxe2+ {[%emt 0:01:51]} 37. Kxe2 {[%emt 0:00:03]} Rxh4 {[%emt 0:01:40]} 38. cxb5 {[%emt 0:00:08]} axb5 {[%emt 0:00:06]} 39. a4 {[%emt 0:02:27]} Rh2+ {[%emt 0:00:23]} 40. Kd3 {[%emt 0:00:00]} bxa4 {[%emt 0:00:00]} 41. bxa4 {[%emt 0:01:40]} Ra2 {[%emt 0:01:38]} 42. Rb4 {[%emt 0:02:58]} g5 {[%emt 0:01:43]} 43. Kc4 {[%emt 0:00:56]} h5 {[%emt 0:07:32]} 44. Kb5 {[%emt 0:01:23]} h4 {[%emt 0:01:56]} 45. a5 {[%emt 0:01:43]} h3 {[%emt 0:00:26]} 46. Rb1 {[%emt 0:00:38]} h2 {[%emt 0:01:24]} 47. Rh1 {[%emt 0:01:20]} Kf6 {[%emt 0:00:51]} 48. a6 {[%emt 0:00:26]} Ke5 {[%emt 0:01:22]} 49. Kb6 {[%emt 0:00:08]} Kxd5 {[%emt 0:02:06]} 50. a7 {[%emt 0:00:13]} Rb2+ {[%emt 0:01:03]} 51. Kc7 {[%emt 0:00:12]} Ra2 {[%emt 0:00:12]} 52. Kb7 {[%emt 0:01:19]} Rb2+ {[%emt 0:13:01]} 53. Kc7 {[%emt 0:00:18]} Ra2 {[%emt 0:00:26]} 54. Kb7 {[%emt 0:00:15]} Rb2+ {[%emt 0:05:45]} 55. Kc7 {[%emt 0:00:13]} Rc2+ {[%emt 0:00:15]} 56. Kb7 {[%emt 0:00:42]} Rb2+ {[%emt 0:00:04]} 57. Kc7 {[%emt 0:00:17]} Rc2+ {[%emt 0:00:26]} 1/2-1/2